bitfinex/quotes_BTCUSD_20250127
["timestamp","ask_amount","ask_price","bid_price","bid_amount"]
[1737997209039,0.00063835,99817.0,99800.0,0.26792548]
[1737997209245,0.00063835,99817.0,99811.0,0.150283]
[1737997209448,0.00063835,99817.0,99811.0,0.150284]
[1737997209449,0.009,99812.0,99811.0,0.150284]
[1737997209880,0.00063835,99817.0,99801.0,0.29774529]
[1737997210131,0.00063835,99817.0,99788.0,0.01011754]
[1737997210416,0.009,99795.0,99794.0,0.150309]
[1737997210706,0.00125242,99809.0,99788.0,0.02034709]
[1737997210964,0.00063835,99817.0,99788.0,0.02034709]
[1737997210965,0.150297,99803.0,99794.0,0.150308]
[1737997211220,0.20038,99810.0,99788.0,5.7e-07]
[1737997211477,0.200368,99816.0,99790.0,0.023]
[1737997211722,0.00163835,99817.0,99795.0,0.15]
[1737997212011,0.15191335,99817.0,99809.0,0.150286]
[1737997212243,0.15191335,99817.0,99797.0,0.173]
[1737997212244,0.001,99803.0,99802.0,0.150297]
[1737997212501,0.001,99803.0,99802.0,0.24764429]
[1737997213316,0.00063835,99817.0,99802.0,0.09734729]
[1737997213470,0.00063835,99817.0,99816.0,0.150276]
[1737997213676,0.00063835,99817.0,99811.0,0.150282]
[1737997213907,0.00063835,99817.0,99816.0,0.150276]
[1737997214346,0.00063835,99817.0,99816.0,0.24762329]
[1737997214487,0.00063835,99817.0,99816.0,0.42062329]
[1737997214685,0.00063835,99817.0,99816.0,0.24762329]
[1737997214890,0.00063835,99817.0,99808.0,0.0462]
[1737997214891,0.150279,99815.0,99808.0,0.0462]
[1737997215102,0.00063835,99817.0,99816.0,0.150276]
[1737997215296,0.00063835,99817.0,99808.0,0.0462]
[1737997215478,0.00063835,99817.0,99816.0,0.150276]
[1737997215693,0.00063835,99817.0,99816.0,0.09734729]
[1737997215901,0.00463835,99817.0,99816.0,0.150276]
[1737997216149,0.00463835,99817.0,99788.0,5.7e-07]
[1737997216150,0.10198564,99817.0,99788.0,5.7e-07]
[1737997216409,0.00125252,99816.0,99788.0,5.7e-07]
[1737997216589,0.00063835,99817.0,99790.0,0.20042]
[1737997216739,0.15991435,99817.0,99816.0,0.001]
[1737997217525,0.15991435,99817.0,99800.0,0.200399]
[1737997217526,0.150281,99813.0,99806.0,0.15029]
[1737997217728,0.00063835,99817.0,99796.0,0.150306]
[1737997217916,0.15091335,99817.0,99810.0,0.150285]
[1737997218043,0.150281,99813.0,99797.0,0.09734729]
[1737997218254,0.150283,99812.0,99803.0,0.150294]
[1737997218453,0.150279,99814.0,99806.0,0.15029]
[1737997218716,0.00663835,99817.0,99797.0,0.09734729]
[1737997218957,0.00663835,99817.0,99795.0,0.01000649]
[1737997218958,0.00663835,99817.0,99816.0,0.150276]
[1737997219308,0.00963835,99817.0,99816.0,0.150276]
[1737997219538,0.00963835,99817.0,99812.0,0.200375]
[1737997219702,0.00063835,99817.0,99812.0,0.200375]
[1737997219905,0.00063835,99817.0,99815.0,0.150277]
[1737997220132,0.00063835,99817.0,99812.0,0.200375]
[1737997220133,0.00363835,99817.0,99816.0,0.150276]
[1737997220295,0.00163835,99817.0,99816.0,0.150276]
[1737997220498,0.00063835,99817.0,99816.0,0.150276]
[1737997220713,0.00663835,99817.0,99816.0,0.150276]
[1737997220921,0.00363835,99817.0,99816.0,0.42062329]
[1737997221366,0.00556407,99817.0,99816.0,0.45162329]
[1737997221607,0.0001417,99887.0,99837.0,0.02]
[1737997221835,0.00027099,99854.0,99853.0,0.37042]
[1737997222076,0.00027099,99854.0,99853.0,0.46776729]
[1737997222984,0.00027099,99854.0,99853.0,0.48788671]
[1737997223193,0.00027099,99854.0,99853.0,0.46776729]
[1737997223445,0.00027099,99854.0,99853.0,0.47784529]
[1737997223653,0.00227099,99854.0,99853.0,0.49284529]
[1737997223869,0.00121967,99854.0,99853.0,0.48384529]
[1737997224081,0.01590542,99854.0,99853.0,0.47784529]
[1737997224289,0.01690542,99854.0,99853.0,0.48684529]
[1737997224494,0.01590542,99854.0,99853.0,0.47784529]
[1737997224906,4.2e-07,99854.0,99853.0,0.51684529]
[1737997225113,0.0001417,99887.0,99866.0,0.310201]
[1737997225326,0.0001417,99887.0,99866.0,0.93121829]
[1737997225530,0.0001417,99887.0,99866.0,0.95121829]
[1737997225795,5.153e-05,99867.0,99866.0,0.95121829]
[1737997225975,5.153e-05,99867.0,99866.0,0.92121829]
[1737997226366,5.153e-05,99867.0,99866.0,0.94121829]
[1737997226593,5.153e-05,99867.0,99866.0,0.95121829]
[1737997226765,0.0001417,99887.0,99880.0,0.02]
[1737997226965,0.00029058,99887.0,99886.0,0.39751829]
[1737997227202,0.00029058,99887.0,99886.0,0.89808829]
[1737997227802,0.00029058,99887.0,99886.0,0.93127657]
[1737997229443,0.00029058,99887.0,99886.0,0.94227657]
[1737997229686,0.00029058,99887.0,99886.0,0.93327657]
[1737997230046,0.00029058,99887.0,99886.0,0.94227657]
[1737997230260,0.00029058,99887.0,99886.0,0.93127657]
[1737997230460,0.00029058,99887.0,99886.0,0.92027657]
[1737997230906,0.00029058,99887.0,99886.0,0.91127657]
[1737997231087,0.00029058,99887.0,99886.0,0.66392928]
[1737997231354,0.00029058,99887.0,99886.0,0.77027657]
[1737997231562,0.00029058,99887.0,99886.0,0.92027657]
[1737997231734,0.00029058,99887.0,99886.0,0.94327657]
[1737997231941,0.00029058,99887.0,99886.0,0.66992928]
[1737997232143,0.15045958,99887.0,99886.0,0.50957]
[1737997232319,0.15045958,99887.0,99886.0,0.51157]
[1737997232522,0.15045958,99887.0,99886.0,0.50257]
[1737997232928,0.15045958,99887.0,99886.0,0.51157]
[1737997233129,0.15045958,99887.0,99886.0,0.50257]
[1737997233329,0.15045958,99887.0,99886.0,0.50057]
[1737997233529,0.15045958,99887.0,99886.0,0.50157]
[1737997233690,0.15045958,99887.0,99886.0,0.50057]
[1737997234107,0.15245958,99887.0,99886.0,0.50157]
[1737997234323,0.15045958,99887.0,99886.0,0.50057]
[1737997234769,0.00029058,99887.0,99886.0,0.650741]
[1737997235436,0.00529058,99887.0,99886.0,0.650741]
[1737997236068,0.00529058,99887.0,99886.0,0.50057]
[1737997236069,0.15545958,99887.0,99886.0,0.50057]
[1737997236305,0.15545958,99887.0,99886.0,0.50157]
[1737997236306,0.15645958,99887.0,99886.0,0.50157]
[1737997236504,0.24880687,99887.0,99886.0,0.50157]
[1737997236704,0.24780687,99887.0,99886.0,0.50057]
[1737997236914,0.25280687,99887.0,99886.0,0.50057]
[1737997237128,0.25380687,99887.0,99886.0,0.50157]
[1737997237339,0.25280687,99887.0,99886.0,0.50057]
[1737997237765,0.25380687,99887.0,99886.0,0.50157]
[1737997237970,0.25280687,99887.0,99886.0,0.50057]
[1737997238189,0.24780687,99887.0,99886.0,0.50057]
[1737997238598,0.27313183,99887.0,99886.0,0.50057]
[1737997238987,0.26813183,99887.0,99886.0,0.50057]
[1737997239408,0.01,99883.0,99848.0,0.08939786]
[1737997239632,0.01,99883.0,99841.0,0.150238]
[1737997239633,0.150231,99847.0,99841.0,0.150238]
[1737997239832,0.00125195,99878.0,99832.0,0.01012554]
[1737997240039,0.09734729,99877.0,99834.0,0.023]
[1737997240347,0.1003417,99887.0,99818.0,0.02042115]
[1737997240348,0.0883417,99887.0,99841.0,0.173]
[1737997240553,0.0883417,99887.0,99835.0,0.09734729]
[1737997240554,0.0051417,99887.0,99886.0,0.150171]
[1737997240980,0.00529058,99887.0,99886.0,0.150171]
[1737997241212,0.00529058,99887.0,99886.0,0.24751829]
[1737997241459,0.00529058,99887.0,99886.0,0.150171]
[1737997241708,0.00029058,99887.0,99886.0,0.150171]
[1737997242842,0.00729058,99887.0,99886.0,0.151171]
[1737997243091,0.00729058,99887.0,99886.0,0.42151829]
[1737997243301,0.00029058,99887.0,99886.0,0.42051829]
[1737997243505,0.00129058,99887.0,99886.0,0.42351829]
[1737997243901,0.00129058,99887.0,99886.0,0.52730812]
[1737997244331,0.00529058,99887.0,99886.0,0.50730812]
[1737997244457,0.00129058,99887.0,99886.0,0.50730812]
[1737997244659,0.00029058,99887.0,99886.0,0.52730812]
[1737997244872,0.00029058,99887.0,99886.0,0.50730812]
[1737997245067,0.00029058,99887.0,99886.0,0.51130812]
[1737997245758,0.00029058,99887.0,99886.0,0.50730812]
[1737997245964,0.00029058,99887.0,99886.0,0.53230812]
[1737997246169,0.0001417,99891.0,99886.0,0.53230812]
[1737997246170,0.0001417,99891.0,99890.0,0.320165]
[1737997246404,0.0001417,99891.0,99890.0,0.39751229]
[1737997246838,0.0001417,99891.0,99890.0,0.42051229]
[1737997247041,0.0001417,99891.0,99890.0,0.44051229]
[1737997247256,0.0001417,99891.0,99890.0,0.42051229]
[1737997247463,0.0011417,99891.0,99890.0,0.42951229]
[1737997247670,0.0001417,99891.0,99890.0,0.42051229]
[1737997248096,0.0011417,99891.0,99890.0,0.42951229]
[1737997248303,0.0011417,99891.0,99890.0,0.43551229]
[1737997248714,0.0011417,99891.0,99890.0,0.93006229]
[1737997249144,0.0011417,99891.0,99890.0,0.93506229]
[1737997249616,0.0001417,99891.0,99890.0,0.92106229]
[1737997250075,0.0001417,99891.0,99890.0,0.92606229]
[1737997250271,0.0011417,99891.0,99890.0,0.93506229]
[1737997250478,0.0001417,99891.0,99890.0,0.92606229]
[1737997250679,0.0001417,99891.0,99890.0,0.94606229]
[1737997250834,0.0011417,99891.0,99890.0,0.95506229]
[1737997251041,0.0001417,99891.0,99890.0,0.94606229]
[1737997251257,0.0001417,99891.0,99890.0,0.94106229]
[1737997251491,0.0001413,99897.0,99896.0,0.300156]
[1737997251636,0.0001413,99897.0,99896.0,0.42050329]
[1737997251813,0.0001413,99897.0,99896.0,0.92102329]
[1737997252235,0.0001013,99897.0,99896.0,0.92102329]
[1737997252451,0.0001013,99897.0,99896.0,1.02119519]
[1737997253268,0.0001013,99897.0,99896.0,1.04519519]
[1737997253526,0.0011013,99897.0,99896.0,1.05419519]
[1737997253754,0.0001416,99954.0,99906.0,0.310141]
[1737997253933,0.0001416,99954.0,99914.0,0.17]
[1737997254146,0.00063787,99917.0,99916.0,0.42047329]
[1737997254360,0.00049617,99917.0,99916.0,1.18183669]
[1737997254771,0.0001416,99954.0,99934.0,0.323099]
[1737997254974,3.16e-05,99954.0,99935.0,0.193]
[1737997255183,0.00018045,99954.0,99953.0,0.36947]
[1737997255382,0.00018045,99954.0,99953.0,0.96705729]
[1737997256633,0.00018045,99954.0,99953.0,0.90065729]
[1737997256833,0.00018045,99954.0,99953.0,0.90965729]
[1737997257035,0.00018045,99954.0,99953.0,0.90065729]
[1737997257244,0.00018045,99954.0,99953.0,0.93265729]
[1737997257653,0.00018045,99954.0,99953.0,0.92365729]
[1737997258068,0.00018045,99954.0,99953.0,0.74765729]
[1737997258274,0.00018045,99954.0,99953.0,0.75265729]
[1737997258689,0.00018045,99954.0,99953.0,0.77065729]
[1737997258903,0.00018045,99954.0,99953.0,0.92065729]
[1737997259110,0.00018045,99954.0,99953.0,0.92365729]
[1737997259494,0.00018045,99954.0,99953.0,0.93265729]
[1737997259896,0.00018045,99954.0,99953.0,0.59758729]
[1737997260095,0.15124945,99954.0,99953.0,0.50924]
[1737997260462,0.15124945,99954.0,99953.0,0.50024]
[1737997260463,0.15024945,99954.0,99953.0,0.50024]
[1737997260664,0.25754626,99954.0,99953.0,0.50924]
[1737997260984,0.40854626,99954.0,99953.0,0.50024]
[1737997261187,0.15024945,99954.0,99953.0,0.50024]
[1737997261434,0.24859674,99954.0,99953.0,0.51224]
[1737997261927,0.15124945,99954.0,99953.0,0.50924]
[1737997262343,0.24859674,99954.0,99953.0,0.50924]
[1737997262751,0.24759674,99954.0,99953.0,0.50124]
[1737997262962,0.40759674,99954.0,99953.0,0.50224]
[1737997263178,0.41800834,99954.0,99953.0,0.442213]
[1737997263356,0.41800834,99954.0,99953.0,0.400195]
[1737997263790,0.41800834,99954.0,99953.0,0.34661662]
[1737997264006,0.54482547,99954.0,99953.0,0.01996581]
[1737997264210,0.150141,99906.0,99877.0,0.200245]
[1737997264421,0.150141,99906.0,99881.0,0.150177]
[1737997264631,0.150141,99906.0,99881.0,0.150178]
[1737997264837,0.150141,99906.0,99871.0,0.0813]
[1737997264838,0.24748829,99906.0,99871.0,0.0813]
[1737997265048,0.150168,99888.0,99871.0,0.0813]
[1737997265256,0.15141957,99888.0,99871.0,0.0813]
[1737997265652,0.15141957,99888.0,99887.0,0.00079332]
[1737997266264,0.24876686,99888.0,99887.0,0.00079332]
[1737997266465,0.24751529,99888.0,99887.0,0.00079332]
[1737997266582,0.150198,99868.0,99867.0,0.00029715]
[1737997266786,0.150198,99868.0,99867.0,0.00044603]
[1737997267209,0.24879705,99868.0,99867.0,0.00044603]
[1737997267422,0.24754529,99868.0,99867.0,0.00044603]
[1737997267865,0.25254529,99868.0,99867.0,0.00044603]
[1737997268281,0.41254529,99868.0,99867.0,0.00044603]
[1737997268500,0.150238,99841.0,99840.0,0.08923099]
[1737997268710,0.150238,99841.0,99840.0,0.08936038]
[1737997269141,0.24883739,99841.0,99840.0,0.08936038]
[1737997269345,0.39758529,99841.0,99840.0,0.08936038]
[1737997270176,0.39758529,99841.0,99840.0,0.00042633]
[1737997270382,0.300238,99841.0,99840.0,0.00042633]
[1737997270787,0.304238,99841.0,99840.0,0.00142633]
[1737997270993,0.40158529,99841.0,99840.0,0.00142633]
[1737997271398,0.40158529,99841.0,99840.0,0.00242633]
[1737997271593,0.154238,99841.0,99840.0,0.00242633]
[1737997271803,0.004,99841.0,99840.0,0.00242633]
[1737997272033,0.20152604,99863.0,99841.0,0.150238]
[1737997272408,0.004,99841.0,99840.0,0.23416633]
[1737997272618,0.004,99841.0,99840.0,0.40716633]
[1737997272829,0.200265,99868.0,99843.0,0.023]
[1737997273071,0.200276,99862.0,99845.0,0.023]
[1737997273342,0.08812,99870.0,99862.0,0.150206]
[1737997273616,0.08812,99870.0,99850.0,0.26733661]
[1737997273841,0.08812,99870.0,99864.0,0.150204]
[1737997274048,0.08812,99870.0,99841.0,0.0462]
[1737997274259,0.00125164,99869.0,99842.0,0.09734729]
[1737997274461,0.00125164,99869.0,99843.0,0.200314]
[1737997274666,0.00125164,99869.0,99846.0,0.15023]
[1737997274874,0.200266,99867.0,99848.0,0.150227]
[1737997275087,0.08812,99870.0,99841.0,0.196438]
[1737997275088,0.150226,99849.0,99841.0,0.196438]
[1737997275301,0.15022,99854.0,99846.0,0.15023]
[1737997275500,0.200268,99866.0,99848.0,0.150227]
[1737997275501,0.200278,99861.0,99848.0,0.150227]
[1737997275710,0.00125185,99860.0,99841.0,0.0462]
[1737997275932,0.00525191,99869.0,99843.0,0.200313]
[1737997276129,0.150224,99851.0,99842.0,0.200316]
[1737997276371,0.150227,99849.0,99846.0,0.001]
[1737997276586,0.150229,99847.0,99846.0,0.001]
[1737997276799,0.26733661,99890.0,99841.0,0.1962]
[1737997277015,0.00125176,99889.0,99842.0,0.09734729]
[1737997277234,0.150237,99842.0,99841.0,0.0462]
[1737997277443,0.200266,99867.0,99841.0,0.0462]
[1737997277444,0.150235,99844.0,99841.0,0.0462]
[1737997277655,0.150237,99842.0,99841.0,0.0462]
[1737997278067,0.150238,99841.0,99840.0,0.00042633]
[1737997278696,0.15149001,99841.0,99840.0,0.00042633]
[1737997278912,0.2488373,99841.0,99840.0,0.00042633]
[1737997279116,0.2488373,99841.0,99840.0,3.3e-07]
[1737997279117,0.45279659,99841.0,99840.0,3.3e-07]
[1737997279369,0.40783341,99841.0,99840.0,3.3e-07]
[1737997279609,0.41783341,99841.0,99840.0,3.3e-07]
[1737997279888,0.4374269,99841.0,99840.0,3.3e-07]
[1737997280323,0.150297,99802.0,99801.0,0.0482]
[1737997281356,0.200378,99812.0,99801.0,0.0482]
[1737997281567,0.003,99802.0,99801.0,0.198497]
[1737997281781,0.003,99802.0,99801.0,0.31884429]
[1737997282428,0.200336,99833.0,99802.0,0.023]
[1737997282634,0.004,99812.0,99811.0,0.150284]
[1737997282841,0.004,99812.0,99809.0,0.150286]
[1737997283050,0.004,99812.0,99801.0,0.04849715]
[1737997283254,0.150297,99802.0,99801.0,0.05449715]
[1737997284090,0.150297,99802.0,99801.0,0.04849715]
[1737997284220,0.150297,99802.0,99801.0,0.05149715]
[1737997284630,0.150297,99802.0,99801.0,0.0489938]
[1737997285178,0.154297,99802.0,99801.0,0.0489938]
[1737997286164,0.156297,99802.0,99801.0,0.0499938]
[1737997286772,0.25364429,99802.0,99801.0,0.0017938]
[1737997286970,0.29848324,99802.0,99801.0,0.0017938]
[1737997287169,0.40364429,99802.0,99801.0,0.0017938]
[1737997287602,0.41870246,99802.0,99801.0,0.0017938]
[1737997287810,0.40864429,99802.0,99801.0,0.0017938]
[1737997288246,0.40364429,99802.0,99801.0,0.0017938]
[1737997288656,0.40264429,99802.0,99801.0,0.0007938]
[1737997289075,0.40664429,99802.0,99801.0,0.0017938]
[1737997289282,0.300299,99801.0,99800.0,0.1]
[1737997289488,0.39764629,99801.0,99800.0,0.1]
[1737997290931,0.24764629,99801.0,99800.0,0.1]
[1737997291137,0.150299,99801.0,99800.0,0.1]
[1737997291571,0.24889883,99801.0,99800.0,0.1]
[1737997291777,0.24764629,99801.0,99800.0,0.1]
[1737997291989,0.25664629,99801.0,99800.0,0.101]
[1737997292200,0.150299,99801.0,99800.0,0.1]
[1737997292419,0.155299,99801.0,99800.0,0.101]
[1737997292629,0.163299,99801.0,99800.0,0.102]
[1737997292803,0.150299,99801.0,99800.0,0.1]
[1737997293212,0.163299,99801.0,99800.0,0.101]
[1737997294368,0.013,99801.0,99800.0,0.101]
[1737997294578,0.008,99801.0,99800.0,0.34864729]
[1737997294993,0.150284,99811.0,99805.0,0.150292]
[1737997295216,0.01033308,99845.0,99801.0,0.0819]
[1737997295472,0.00049604,99822.0,99801.0,0.0819]
[1737997295674,0.00049604,99822.0,99810.0,0.150285]
[1737997295873,0.200373,99814.0,99802.0,0.200396]
[1737997296092,0.150285,99811.0,99802.0,0.200396]
[1737997296306,0.350654,99814.0,99806.0,0.15029]
[1737997296527,0.00049604,99822.0,99801.0,0.18024729]
[1737997296732,0.00049604,99822.0,99805.0,0.150293]
[1737997296903,0.200358,99821.0,99801.0,0.17924729]
[1737997297153,0.200377,99812.0,99803.0,0.150295]
[1737997297362,0.150297,99802.0,99801.0,0.0819]
[1737997297777,0.150296,99803.0,99801.0,0.0819]
[1737997297982,0.00449604,99822.0,99801.0,0.0819]
[1737997298156,0.150296,99803.0,99802.0,0.002]
[1737997298358,0.150296,99803.0,99801.0,0.0819]
[1737997298775,0.160297,99802.0,99801.0,0.0829]
[1737997298949,0.004,99802.0,99801.0,0.0819]
[1737997299179,0.200386,99808.0,99801.0,0.0819]
[1737997299404,0.001,99803.0,99802.0,0.001]
[1737997299777,0.001,99803.0,99801.0,0.0819]
[1737997299990,0.006,99802.0,99801.0,0.0829]
[1737997300395,0.006,99802.0,99801.0,0.33054629]
[1737997301204,0.004,99802.0,99801.0,0.35254629]
[1737997301401,0.004,99802.0,99801.0,0.50254629]
[1737997301602,0.006,99803.0,99802.0,0.573792]
[1737997301911,0.00049604,99822.0,99821.0,0.150268]
[1737997302694,0.00049604,99822.0,99806.0,0.01036309]
[1737997302916,0.001,99803.0,99802.0,0.26064429]
[1737997303115,0.00049604,99822.0,99818.0,0.150272]
[1737997303317,0.00049604,99822.0,99803.0,0.15]
[1737997303318,0.150273,99819.0,99812.0,0.150281]
[1737997303521,0.150272,99819.0,99806.0,0.200388]
[1737997303743,0.150273,99818.0,99807.0,0.200386]
[1737997303959,0.150273,99818.0,99806.0,0.29773529]
[1737997303960,0.200361,99820.0,99806.0,0.150291]
[1737997304118,0.150285,99811.0,99803.0,0.15]
[1737997304327,0.00049604,99822.0,99801.0,0.2319]
[1737997304538,0.150283,99812.0,99802.0,0.150297]
[1737997304742,0.01374841,99822.0,99801.0,0.2319]
[1737997304743,0.00549604,99822.0,99803.0,0.09734729]
[1737997304956,0.00549604,99822.0,99810.0,0.150284]
[1737997305164,0.150278,99815.0,99806.0,0.002]
[1737997305383,0.20036,99820.0,99806.0,0.09734729]
[1737997305590,0.00049604,99822.0,99806.0,0.09734729]
[1737997305789,0.00049604,99822.0,99807.0,0.12034729]
[1737997305984,0.00149604,99822.0,99807.0,0.12034729]
[1737997306199,0.15027,99821.0,99814.0,0.150278]
[1737997306456,0.00149604,99822.0,99815.0,0.150276]
[1737997306680,0.00149604,99822.0,99808.0,0.15]
[1737997306881,0.00149604,99822.0,99816.0,0.150275]
[1737997307084,0.150276,99817.0,99810.0,0.150284]
[1737997307288,0.200358,99821.0,99806.0,0.004]
[1737997307462,0.15029,99807.0,99806.0,0.004]
[1737997307669,0.150297,99802.0,99800.0,0.10029736]
[1737997308071,0.150299,99801.0,99800.0,0.10029736]
[1737997308245,0.24889894,99801.0,99800.0,0.10029736]
[1737997308459,0.24764629,99801.0,99800.0,0.10029736]
[1737997309290,0.25364629,99801.0,99800.0,0.10129736]
[1737997309703,0.24764629,99801.0,99800.0,0.10029736]
[1737997310708,0.25564629,99801.0,99800.0,0.10129736]
[1737997311416,0.25564629,99801.0,99800.0,0.10029736]
[1737997311417,0.24764629,99801.0,99800.0,0.10029736]
[1737997311592,0.25564629,99801.0,99800.0,0.10129736]
[1737997312217,0.24734574,99801.0,99800.0,0.10029736]
[1737997312545,0.26434574,99801.0,99800.0,0.10229736]
[1737997312729,0.25534574,99801.0,99800.0,0.10129736]
[1737997312929,0.26434574,99801.0,99800.0,0.10229736]
[1737997313141,0.16699845,99801.0,99800.0,0.10229736]
[1737997313357,0.15799845,99801.0,99800.0,0.10129736]
[1737997313566,0.017,99801.0,99800.0,0.22629736]
[1737997313770,0.009,99801.0,99800.0,0.37559736]
[1737997313973,0.009,99801.0,99800.0,0.22529736]
[1737997314185,0.017,99801.0,99800.0,0.22629736]
[1737997314395,0.167299,99801.0,99800.0,0.22629736]
[1737997314615,0.159299,99801.0,99800.0,0.22529736]
[1737997315046,0.159299,99801.0,99800.0,0.22429736]
[1737997315047,0.152299,99801.0,99800.0,0.22429736]
[1737997315405,0.200372,99814.0,99800.0,0.22429736]
[1737997315608,0.155299,99801.0,99800.0,0.14679736]
[1737997316007,0.26164629,99801.0,99800.0,0.10129736]
[1737997316180,0.25264629,99801.0,99800.0,0.10029736]
[1737997316546,0.26064629,99801.0,99800.0,0.10129736]
[1737997316750,0.24764629,99801.0,99800.0,0.10029736]
[1737997317176,0.25164629,99801.0,99800.0,0.10029736]
[1737997317401,0.40164629,99801.0,99800.0,9.736e-05]
[1737997317539,0.40764629,99801.0,99800.0,9.736e-05]
[1737997317949,0.41564629,99801.0,99800.0,3.6e-07]
[1737997318158,0.300315,99790.0,99789.0,7.2e-07]
[1737997318355,0.310318,99788.0,99787.0,4.4e-07]
[1737997318579,0.42766529,99788.0,99787.0,4.4e-07]
[1737997319023,0.40766529,99788.0,99787.0,4.4e-07]
[1737997319234,0.42766529,99788.0,99787.0,4.4e-07]
[1737997319857,0.43666529,99788.0,99787.0,0.00100044]
[1737997320265,0.44656899,99788.0,99787.0,4.4e-07]
[1737997320474,0.300329,99781.0,99780.0,0.00905543]
[1737997320690,0.39767629,99781.0,99780.0,0.00916967]
[1737997321769,0.40367629,99781.0,99780.0,0.00011424]
[1737997322186,0.4558325,99781.0,99780.0,2.4e-07]
[1737997322394,0.4328325,99781.0,99780.0,2.4e-07]
[1737997322809,0.2828325,99781.0,99780.0,2.4e-07]
[1737997323498,0.150348,99768.0,99763.0,0.00029757]
[1737997324000,0.150347,99769.0,99768.0,0.124]
[1737997324751,0.20044,99780.0,99768.0,0.124]
[1737997324957,0.200406,99797.0,99768.0,0.124]
[1737997325158,0.00014872,99790.0,99768.0,0.124]
[1737997325381,0.009,99781.0,99768.0,0.124]
[1737997325595,0.150336,99777.0,99770.0,0.150344]
[1737997325803,0.150347,99769.0,99768.0,0.124]
[1737997326132,0.24769429,99769.0,99768.0,0.124]
[1737997326347,0.150347,99769.0,99768.0,0.124]
[1737997326873,0.150334,99778.0,99768.0,0.124]
[1737997327086,0.00014872,99790.0,99768.0,0.124]
[1737997327497,0.004,99769.0,99768.0,0.274348]
[1737997327698,0.004,99769.0,99768.0,0.37169529]
[1737997327882,0.200423,99789.0,99773.0,0.200453]
[1737997328111,0.150323,99785.0,99778.0,0.150333]
[1737997328244,0.005,99778.0,99768.0,0.22234729]
[1737997328445,0.005,99778.0,99777.0,0.150335]
[1737997328654,0.15046472,99790.0,99771.0,0.200459]
[1737997328856,0.00014872,99790.0,99789.0,0.199917]
[1737997329325,0.00014872,99790.0,99789.0,0.0496]
[1737997329534,0.00014872,99790.0,99789.0,0.282417]
[1737997329753,0.00014872,99790.0,99789.0,0.1321]
[1737997329754,0.15046372,99790.0,99789.0,0.1321]
[1737997329991,0.00014872,99790.0,99789.0,0.1321]
[1737997330182,0.00914872,99790.0,99789.0,0.37976429]
[1737997330408,0.00914872,99790.0,99789.0,0.32026429]
[1737997330609,0.01414872,99790.0,99789.0,0.0496]
[1737997330844,0.16446372,99790.0,99789.0,0.0496]
[1737997331207,0.00914872,99790.0,99789.0,0.29726429]
[1737997331424,0.0001416,99822.0,99789.0,0.27034729]
[1737997331648,0.0001416,99822.0,99767.0,0.11059797]
[1737997331649,0.150268,99821.0,99795.0,0.1299]
[1737997331853,0.0001416,99822.0,99800.0,0.023]
[1737997331854,0.00063823,99822.0,99800.0,0.023]
[1737997332064,0.00063823,99822.0,99816.0,0.0762]
[1737997332269,0.150275,99817.0,99816.0,0.0762]
[1737997333737,0.00063823,99822.0,99816.0,0.0762]
[1737997334377,0.155275,99817.0,99816.0,0.0772]
[1737997334789,0.159275,99817.0,99816.0,0.0772]
[1737997334996,0.1594166,99817.0,99816.0,0.0772]
[1737997335208,0.1504166,99817.0,99816.0,0.0772]
[1737997335421,0.1504166,99817.0,99816.0,0.0782]
[1737997335639,0.1504166,99817.0,99816.0,0.002]
[1737997335839,0.1504166,99817.0,99816.0,0.001]
[1737997336053,0.1584166,99817.0,99816.0,0.002]
[1737997336466,0.150302,99799.0,99796.0,0.0789]
[1737997336671,0.0012525,99815.0,99796.0,0.0789]
[1737997337110,0.150315,99790.0,99789.0,0.0451]
[1737997337528,0.24891498,99790.0,99789.0,0.0451]
[1737997337733,0.24891498,99790.0,99784.0,0.0818]
[1737997337734,0.150323,99785.0,99784.0,0.0818]
[1737997338680,0.150329,99781.0,99774.0,0.0496]
[1737997338913,0.150329,99781.0,99773.0,0.2264]
[1737997338914,0.24892923,99781.0,99780.0,0.00044608]
[1737997339133,0.24767629,99781.0,99780.0,0.00044608]
[1737997340535,0.25367629,99781.0,99780.0,0.00044608]
[1737997340751,0.01,99764.0,99761.0,0.08963559]
[1737997340949,0.300369,99754.0,99739.0,0.00029673]
[1737997341156,0.300369,99754.0,99718.0,0.0475]
[1737997341157,0.300392,99739.0,99738.0,2.4e-07]
[1737997341350,0.39773929,99739.0,99738.0,2.4e-07]
[1737997341697,0.39773929,99739.0,99738.0,0.00014934]
[1737997342355,0.40673929,99739.0,99738.0,0.00014934]
[1737997343072,0.309392,99739.0,99738.0,0.00014934]
[1737997343245,0.41573929,99739.0,99738.0,0.00014934]
[1737997344376,0.324392,99739.0,99738.0,0.00014934]
[1737997344586,0.174392,99739.0,99738.0,0.00014934]
[1737997344984,0.006,99739.0,99738.0,0.00014934]
[1737997345196,0.006,99739.0,99738.0,0.08214934]
[1737997345401,0.015,99739.0,99738.0,0.08214934]
[1737997345610,0.156392,99739.0,99738.0,0.08214934]
[1737997345811,0.156392,99739.0,99738.0,0.12734934]
[1737997346012,0.015,99739.0,99738.0,0.12734934]
[1737997346189,0.150391,99740.0,99738.0,0.12734934]
[1737997346393,0.200459,99771.0,99738.0,0.12734934]
[1737997346554,0.015,99739.0,99738.0,0.12734934]
[1737997346755,0.015,99739.0,99738.0,0.27774334]
[1737997347177,0.009,99739.0,99738.0,0.27774334]
[1737997347804,0.009,99739.0,99738.0,0.31609063]
[1737997348044,0.009,99739.0,99738.0,0.39129063]
[1737997348250,0.20049,99756.0,99738.0,0.12054934]
[1737997348446,0.200497,99752.0,99740.0,0.15039]
[1737997348652,0.15,99769.0,99738.0,0.12054934]
[1737997348876,0.09860039,99768.0,99738.0,0.21789663]
[1737997349085,0.001,99739.0,99738.0,0.37029063]
[1737997349315,0.001,99739.0,99738.0,0.31809063]
[1737997349521,0.01967622,99788.0,99749.0,0.150376]
[1737997349715,0.007,99752.0,99751.0,0.150373]
[1737997349918,0.007,99752.0,99748.0,0.150378]
[1737997350128,0.007,99752.0,99738.0,0.04734934]
[1737997350372,0.007,99752.0,99751.0,0.150374]
[1737997350805,0.007,99752.0,99751.0,0.197974]
[1737997351020,0.200457,99772.0,99751.0,0.0476]
[1737997351229,0.15035,99767.0,99759.0,0.150362]